Cogmind - Beta 16.1 @@@ ROGUE MODE // 2026.04.26 @ 23:25:22 Player: Bereft Result: Destroyed by S-10 Pest with Light Assault Rifle Performance ------------- Evolutions (0) 0 Regions Visited (2) 400 Robots Destroyed (27) 135 Value Destroyed (405) 405 Prototype IDs (0) 0 Alien Tech Used (0) 0 Bonus (0) 0 TOTAL SCORE: 940 Bonus ------- None Cogmind --------- Core Integrity 0/250 Matter 144/300 Energy 200/200 System Corruption 2% Temperature Cool (0) Movement Walking (120) Location -10/Subcaves Parts ------- > --- POWER (1) -------- Subdweller Power Source > --- PROPULSION (2) --- Aluminum Leg Aluminum Leg > --- UTILITY (2) ------ Small Storage Unit Signal Interpreter > --- WEAPON (2) ------- Improved Light Cannon > --- INVENTORY (8) ---- High-capacity Matter Pod (102) High-capacity Matter Pod (0) Visual Processing Unit Seismic Detector Transport Network Coupler ECM Suite ECM Suite ECM Suite Peak State ------------ > --- POWER ------------ Ion Engine > --- PROPULSION ------- Aluminum Leg Aluminum Leg > --- UTILITY ---------- Small Storage Unit Seismic Detector > --- WEAPON ----------- Particle Gun Improved Light Cannon > --- INVENTORY -------- Improved Heat Sink Medium Matter Pod Transport Network Coupler ECM Suite ECM Suite [Rating: 9] Favorites ----------- Power Light Ion Engine Engine Light Ion Engine Propulsion Aluminum Leg Leg Aluminum Leg Utility Small Storage Unit Device Seismic Detector Storage Small Storage Unit Processor Signal Interpreter Weapon Small Laser Energy Gun Small Laser Ballistic Gun Light Assault Rifle Ballistic Cannon Improved Light Cannon Special Weapon Mining Laser Build | -11 -10 -10 ------- Run | Yrd Mat Sub Slots Evolved . | . . . Power . | . . . Propulsion . | . . . Utility . | . . . Weapon . | . . . Parts Attached 21 | 8 12 1 Power 6 | 1 4 1 Engine 6 | 1 4 1 Core . | . . . Reactor . | . . . Propulsion 4 | 2 2 . Treads . | . . . Leg 4 | 2 2 . Wheel . | . . . Hover . | . . . Flight . | . . . Utility 3 | 2 1 . Device 1 | 1 . . Storage 1 | 1 . . Processor 1 | . 1 . Hackware . | . . . Protection . | . . . Artifact . | . . . Weapon 8 | 3 5 . Energy Gun 3 | 2 1 . Energy Cannon . | . . . Ballistic Gun 2 | . 2 . Ballistic Cannon 1 | . 1 . Launcher . | . . . Special Weapon 2 | 1 1 . Impact Weapon . | . . . Slashing Weapon . | . . . Piercing Weapon . | . . . Special Melee Weapon . | . . . Unidentified Prototypes . | . . . Parts Lost 3 | 1 2 . Power 1 | 1 . . Propulsion . | . . . Utility . | . . . Weapon 2 | . 2 . Highest Loss Streak 2 | 1 2 . To Critical Strikes . | . . . Average Backups 3 | 1 5 8 Power . | . . . Propulsion . | . . . Utility 2 | . 5 8 Weapon . | . . . Tool/Special . | . . . Unused Backups 11 | 1 3 7 Power . | . . . Propulsion . | . . . Utility 10 | . 3 7 Weapon 1 | 1 . . Tool/Special . | . . . Average Slot Usage (%) 85 | . 85 85 Engine 13 | . 13 14 Leg 27 | . 27 28 Device 6 | . 6 . Storage 14 | . 14 14 Processor 7 | . 7 14 Energy Gun 4 | . 4 . Ballistic Gun 2 | . 2 . Ballistic Cannon 8 | . 8 14 Peak Build Rating 9 | 7 9 8 Average Rating 6 | 6 6 7 On Entrance 4 | . 6 7 Avg Prop Armor Cover (%) . | . . . Naked Turns . | . . . Heaviest Build 15 | 12 15 14 Greatest Support 20 | 20 20 20 Greatest Overweight (x) 3 | . 3 . Average Overweight (x) . | . . . Largest Inventory Capacity 8 | 8 8 8 Average Capacity 7 | 7 8 8 Most Carried 8 | 2 8 8 Average Carried 3 | 1 5 8 Final Capacity 8 | 8 8 8 Final Carried 8 | 2 8 8 Class Distribution -------------------- 90% | Mutant 9% | Scavenger-Mutant Dominant Class ---------------- Mutant | -10/Materials Mutant | -10/Subcaves Resources | -11 -10 -10 ----------- Run | Yrd Mat Sub Matter Collected 783 | 280 503 . Remotely . | . . . Salvage Created 633 | 134 499 . Parts 60 | 15 45 . Haulers Intercepted 2 | . 2 . Recyclers Shooed . | . . . Parts Field Recycled . | . . . Retrieved Matter . | . . . Parts Self-Destructed . | . . . Prevented . | . . . Parts Restored . | . . . Kills | -11 -10 -10 ------- Run | Yrd Mat Sub Combat Hostiles Destroyed 10 | . 9 1 Guns 5 | . 5 . Cannons 5 | . 4 1 Classes Destroyed 9 | 2 7 . Worker 2 | . 2 . Builder 3 | . 3 . Tunneler 4 | 3 1 . Hauler 2 | . 2 . Recycler 2 | 1 1 . Operator 1 | . 1 . Watcher 3 | . 3 . Swarmer 4 | . 3 1 Grunt 6 | . 6 . Best Kill Streak 4 | 4 3 1 Combat Bots Only 3 | . 3 1 Max Kills in Single Turn 1 | 1 1 1 Gunslinging . | . . . Exploded . | . . . Melee . | . . . Uniques/NPCs Destroyed . | . . . Combat | -11 -10 -10 -------- Run | Yrd Mat Sub Hostile Shots Fired 89 | 6 60 23 Missed 24 | 1 16 7 Hits 65 | 5 44 16 Projectile 65 | 5 44 16 AOE 6 | 6 . . Critical Strikes 1 | . 1 . Damage Taken 855 | 235 486 134 Core 250 | 70 152 28 Absorbed by Shields . | . . . Regen/Repaired (Parts) 58 | . 58 . Core Remaining (%) 72 | 72 . . Volleys Fired 130 | 11 112 7 Largest 2 | 2 2 1 Hottest 100 | 80 100 33 Shots Fired 148 | 15 126 7 Gun 77 | 15 62 . Cannon 69 | . 62 7 Launcher . | . . . Special 2 | . 2 . Kinetic 97 | . 90 7 Thermal 36 | 11 25 . Explosive . | . . . Electromagnetic 15 | 4 11 . Robot Hit Streak 9 | 9 8 2 Robot Miss Streak 4 | 1 4 2 Penetration Max . | . . . Secondary Targets . | . . . Shots Hit Robots 75 | 13 59 3 Core Hits 35 | 5 29 1 Critical Kills . | . . . Critical Parts Destroyed . | . . . Critical Strikes 1 | . 1 . Blast 1 | . 1 . Melee Attacks . | . . . Impact . | . . . Slashing . | . . . Piercing . | . . . Sneak Attacks . | . . . Combat Hostiles . | . . . Follow-up Attacks . | . . . Damage Inflicted 1221 | 144 1014 63 Guns 502 | 144 358 . Cannons 663 | . 600 63 Explosions 29 | . 29 . Melee . | . . . Ramming 3 | . 3 . Kinetic 800 | . 737 63 Thermal 333 | 107 226 . Explosive . | . . . Electromagnetic 85 | 37 48 . Impact . | . . . Slashing . | . . . Piercing . | . . . Highest Corruption 2 | . 2 2 Average Corruption 2 | . 2 2 Corruption Purged . | . . . Corruption Blocked . | . . . Effects 8 | . 6 2 Message Errors 2 | . 2 . Matter Fused 1 | . 1 . Heat Flow Errors 1 | . 1 . Energy Discharges 1 | . 1 . Data Loss (minor) 2 | . . 2 Misfires 1 | . 1 . Overload Shots . | . . . Overflow Damage 25 | . 22 3 Projectiles 25 | . 22 3 Explosions . | . . . Melee . | . . . Knockbacks 6 | . 6 . Impact . | . . . Kinetic 5 | . 5 . Secondary 1 | . 1 . Self-Inflicted Damage . | . . . Shots . | . . . Rammed . | . . . Targets Rammed 2 | . 2 . Kicked 2 | . 2 . Crushed . | . . . Highest Temperature 208 | 36 208 . Average Temperature 56 | 25 61 . Received Heat Transfer 192 | . 180 12 Siege Activations . | . . . Martial Activations . | . . . Shielding Activations . | . . . Robots Disrupted . | . . . Combat Hostiles . | . . . Robots Corrupted . | . . . Combat Hostiles . | . . . Parts Fried . | . . . Impact Corruptions . | . . . Robots Melted . | . . . Combat Hostiles . | . . . Parts Melted . | . . . Heat Transferred 757 | 250 507 . Parts Sabotaged . | . . . Parts Stolen . | . . . Parts Stripped . | . . . Power Chain Reactions 1 | . 1 . Alert | -11 -10 -10 ------- Run | Yrd Mat Sub Maximum Alert Level . | . . . Low Security (%) 100 | 100 100 . Level 1 . | . . . Level 2 . | . . . Level 3 . | . . . Level 4 . | . . . Level 5 . | . . . High Security . | . . . Max Security . | . . . Peak Influence 50 | 10 50 . Initial . | . . . Average 4 | . 8 . Influence Increases 420 | 20 350 50 Destroy 0b10 Robot/C 200 | . 180 20 Destroy 0b10 Robot/NC 85 | 20 65 . Destroy Leader 60 | . 60 . Successful Hack 17 | . 17 . Disable Machine 15 | . 15 . Destroy Structure 13 | . 13 . Lose Combat Pursuer 30 | . . 30 Influence Decreases 380 | 20 350 10 Time Decay 360 | 20 330 10 Lost Part 20 | . 20 . Squads Dispatched 2 | . 2 . Investigation 1 | . 1 . Extermination . | . . . Reinforcement 1 | . 1 . Assault . | . . . Garrison . | . . . Intercept . | . . . Searches Triggered . | . . . Construction Impeded . | . . . Haulers Reinforced . | . . . Active Scanning Responses . | . . . Cargo Convoy Interrupts . | . . . Stealth | -11 -10 -10 --------- Run | Yrd Mat Sub Distress Signals 2 | . 2 . Communications Jammed . | . . . Distress Signals . | . . . Times Spotted 31 | 1 24 6 Peak Tracking Total 6 | 1 5 6 Tactical Retreats 1 | . . 1 Traps | -11 -10 -10 ------- Run | Yrd Mat Sub Traps Triggered 5 | . 5 . Indirectly . | . . . Trap Hack Attempts . | . . . Triggered . | . . . Disarmed . | . . . Reprogrammed . | . . . Reused . | . . . Traps Extracted . | . . . Installed . | . . . Triggered . | . . . Machines | -11 -10 -10 ---------- Run | Yrd Mat Sub Machines Disabled 1 | . 1 . Max in Single Turn 1 | . 1 . Machines Repaired . | . . . Machines Dismantled . | . . . Machines Sabotaged . | . . . Overloaded Fab Kills . | . . . Hacking | -11 -10 -10 --------- Run | Yrd Mat Sub Machines Accessed 3 | . 3 . Terminals 2 | . 2 . Fabricators . | . . . Repair Stations 1 | . 1 . Recycling Units . | . . . Scanalyzers . | . . . Garrison Access . | . . . Total Hacks 11 | . 11 . Successful 8 | . 8 . Failed 3 | . 3 . Catastrophic . | . . . Database Lockouts . | . . . Manual 1 | . 1 . Terminals 5 | . 5 . Fabricators . | . . . Repair Stations 6 | . 6 . Recycling Units . | . . . Scanalyzers . | . . . Garrison Access . | . . . Terminal Hacks 3 | . 3 . Terminal Index 1 | . 1 . Zone Layout 2 | . 2 . Fabricator Hacks . | . . . Repair Station Hacks 5 | . 5 . Scan Component 3 | . 3 . Repair 2 | . 2 . Recycling Unit Hacks . | . . . Scanalyzer . | . . . Garrison Access Hacks . | . . . Unauthorized Hacks . | . . . Terminals . | . . . Fabricators . | . . . Repair Stations . | . . . Recycling Units . | . . . Scanalyzers . | . . . Garrison Access . | . . . Data Cores Recovered 1 | . 1 . Used . | . . . Hacking Detections 3 | . 3 . Full Trace Events 1 | . 1 . Feedback Events . | . . . Feedback Blocked . | . . . Robot Schematics Acquired . | . . . Robots Built . | . . . Authchips . | . . . Time . | . . . Total Robot Build Rating . | . . . Part Schematics Acquired . | . . . Parts Built . | . . . Authchips . | . . . Time . | . . . Total Part Build Rating . | . . . Part Studies Acquired . | . . . Parts Repaired 2 | . 2 . Time 52 | . 52 . Parts Recycled . | . . . Recycled Matter . | . . . Retrieved Matter . | . . . Retrieved Components . | . . . Parts Scanalyzed . | . . . Part Schematics Acquired . | . . . Parts Damaged . | . . . Bothacking | -11 -10 -10 ------------ Run | Yrd Mat Sub Used RIF Installer . | . . . Robots Hacked . | . . . Non-combat . | . . . Combat . | . . . Robot Hacks Applied . | . . . Relay Couplers Released . | . . . Fabnet Peak Effective % . | . . . Robots Rewired . | . . . Allies Hacked . | . . . Hacks Repelled . | . . . Allies | -11 -10 -10 -------- Run | Yrd Mat Sub Total Allies . | . . . Largest Group . | . . . Highest-Rated Group . | . . . Highest-Rated Ally . | . . . Total Orders . | . . . Ally Attacks . | . . . Total Damage . | . . . Kills . | . . . Allies Corrupted . | . . . Allies Melted . | . . . Intel | -11 -10 -10 ------- Run | Yrd Mat Sub Active Infowar (turns) 2562 | 1795 767 . Seismic 2562 | 1795 767 . Robot Analysis Total . | . . . Derelict Logs Recovered . | . . . Drone Launches . | . . . Drone Recoveries . | . . . Exploration | -11 -10 -10 ------------- Run | Yrd Mat Sub Turns Passed 3602 | 1873 1665 64 Spaces Moved 1254 | 373 840 41 Core 6 | 5 1 . Treads . | . . . Legs 1248 | 368 839 41 Wheels . | . . . Hover . | . . . Flight . | . . . Fastest Speed 50 | 50 120 120 Average Speed 119 | 119 120 120 Slowest Speed 200 | 120 200 120 Overloaded Moves . | . . . Propulsion Burnouts . | . . . Robots Hopped . | . . . Potential Cave-ins . | . . . Cave-ins Triggered . | . . . Exploration Rate (%) 40 | 33 85 4 Regions Visited 2 Branch Regions 1 Pre-discovered Areas . | . . . Known Exits Taken 1 | . 1 . Unknown Exits Taken 1 | 1 . . Scrap Searched . | . . . Spaces Dug . | . . . Terrain Destroyed 13 | . 13 . Melee . | . . . Projectile 7 | . 7 . AOE 6 | . 6 . Terrain Rammed . | . . . Walls Destroyed . | . . . Machines Disabled . | . . . Actions | -11 -10 -10 --------- Run | Yrd Mat Sub Total 3206 | 1783 1373 50 Wait 1757 | 1385 372 . Move 1252 | 372 839 41 Hop . | . . . Pick Up 19 | 3 16 . Fast Attach 14 | 7 7 . Attach 6 | 1 5 . Detach 1 | 1 . . Swap 9 | 2 6 1 Drop 16 | 1 14 1 Fire 130 | 11 112 7 Melee . | . . . Ram . | . . . Kick 2 | . 2 . Crush . | . . . Escape Stasis . | . . . Rewire . | . . . Trap . | . . . Miscellaneous . | . . . Route ------- -11/Scrapyard -10/Materials (discovered 5 exits: *Mat x3 / *Min / *Sub) -10/Subcaves (discovered 1 exit: [*Rec]) History --------- Turn | Location | Event 3 | -11/Scrapyard | Discovered new exit (range 16) 986 | -11/Scrapyard | Assembled infested the area 1874 | -11/Scrapyard | Entered Materials 1896 | -10/Materials | Build established: Mutant 1900 | -10/Materials | Discovered new exit (range 6) 2280 | -10/Materials | Core integrity fell below 50% 2298 | -10/Materials | Core integrity fell below 20% 2609 | -10/Materials | Build established: Scavenger-Mutant 2643 | -10/Materials | Discovered new exit (range 11) 2672 | -10/Materials | Identified exit to Materials 2774 | -10/Materials | Repaired Aluminum Leg 2819 | -10/Materials | Repaired Aluminum Leg 2931 | -10/Materials | Identified exit to Subcaves 2943 | -10/Materials | Build established: Mutant 3155 | -10/Materials | Discovered new exit (range 7) 3200 | -10/Materials | Identified exit to Mines 3266 | -10/Materials | Discovered exit to Materials (range 5) 3338 | -10/Materials | Discovered exit to Materials (range 7) 3539 | -10/Materials | Entered Subcaves 3572 | -10/Subcaves | Shifting Twisted Machinery released Sub. Power Source 3579 | -10/Subcaves | Shifting Twisted Machinery released Humpback 3580 | -10/Subcaves | Shifting Twisted Machinery released Sub. Shrapnel Launcher 3582 | -10/Subcaves | Discovered new exit (range 15) 3603 | -10/Subcaves | Destroyed by S-10 Pest with Light Assault Rifle Last Messages --------------- System corrupted: Matter fused (-8). W-16 Scout destroyed. System corrupted: Energy discharge (-72). K-01 Serf collects debris. Acquired 8 matter. LOCATION=SUBCAVES AMBIENT_HEAT=-10 GOAL=ESCAPE System corrupted: Component data lost. Sub. Power Source falls loose from the Twisted Machinery. Humpback falls loose from the Twisted Machinery. Sub. Shrapnel Launcher falls loose from the Twisted Machinery. Dropped Ion Engine. EXIT=FOUND Subatomizers dissect the Ion Engine. System corrupted: Component data lost. Destroyed Flight Unit. S-10 Pest destroyed. Map ----- +----------------------------------------------------+ | ?????????????????????????????????????????????????? | | ?????????????????????????????????????????????????? | | ?????????????????????????????????????????????????? | | ?????????????????????????????????????????????????? | | ?????????????????????????????????????????????????? | | ?????????????????????????????????????????????????? | | ?????????????????????????????????????????????????? | | ?????????????????????????????????????????????????? | | ?????????????????????????????????????????????????? | | ?????????????????????????????????????????????????? | | ?????????????????????????????????????????????????? | | ?????????????????????????????????????????????????? | | ?????????????????????????????????????????????????? | | ?????????????????????????????????????????????????? | | ?????????????????????????????????????????????????? | | ?????????????????????????????????????????????????? | | ?????????????????????????????????????????????????? | | ?????????????????????????????????????????????????? | | ?????????????????????????????????????????????????? | | ?????????????????????????????????????????????????? | | ???????????????????????????????######## "????? | | ????????????????????????????### ""????? | | ???????????????????????????##" ]